fUSD/lending_fUSD_20250426
["ID","MTS","AMOUNT","RATE_DAILY","PERIOD"]
[359021056,1745656239328,-1065.5588997,0.000199,2]
[359021176,1745656240817,-1336.0,0.00019685,2]
[359021177,1745656240829,-19141.47832502,0.000199,2]
[359021178,1745656240842,-9054.74075626,0.000199,2]
[359021179,1745656240912,-1717.6072915,0.000199,2]
[359021234,1745656241761,-3772.06614194,0.000199,2]
[359021236,1745656241772,-4744.94619545,0.000199,3]
[359021238,1745656241782,-238.7651451,0.000199,2]
[359021240,1745656241792,-1599.08,0.000199,2]
[359021242,1745656241803,-1151.36,0.000199,2]
[359021244,1745656241813,-450.48,0.000199,2]
[359021246,1745656241824,-799.54,0.000199,2]
[359021248,1745656241836,-450.48,0.000199,2]
[359021250,1745656241847,-1227.53,0.000199,2]
[359021252,1745656241857,-455.14,0.000199,2]
[359021253,1745656241868,-398.53519738,0.000199,2]
[359021254,1745656241879,-1180.48,0.000199,2]
[359021255,1745656241889,-450.63,0.000199,2]
[359021256,1745656241900,-327.87,0.000199,2]
[359021257,1745656241910,-799.54,0.000199,2]
[359021258,1745656241921,-455.14,0.000199,2]
[359021259,1745656241931,-179.084,0.0001996,2]
[359021260,1745656241948,-2844.927,0.0001996,2]
[359021261,1745656241958,-500.0,0.0001997,2]
[359021262,1745656241971,-570.28646925,0.0001997,2]
[359021263,1745656241982,-239.66246255,0.0001997,2]
[359021264,1745656241993,-500.0,0.0001997,2]
[359021265,1745656242004,-500.0,0.0001997,2]
[359021266,1745656242015,-500.0,0.0001997,2]
[359021267,1745656242027,-500.0,0.0001997,2]
[359021268,1745656242037,-500.0,0.0001997,2]
[359021269,1745656242048,-500.0,0.0001997,2]
[359021270,1745656242058,-500.0,0.0001997,2]
[359021271,1745656242069,-500.0,0.0001997,2]
[359021272,1745656242079,-171.00924025,0.00019971,2]
[359021273,1745656242090,-500.0,0.00019971,2]
[359021274,1745656242100,-203.69075213,0.00019971,2]
[359021275,1745656242110,-208.77541597,0.00019971,2]
[359021276,1745656242120,-500.0,0.00019971,2]
[359021277,1745656242131,-175.50409895,0.00019971,2]
[359021278,1745656242142,-437.30557782,0.00019971,2]
[359021279,1745656242152,-500.0,0.00019971,2]
[359021280,1745656242162,-500.0,0.00019971,2]
[359021281,1745656242172,-500.0,0.00019971,2]
[359021282,1745656242182,-500.0,0.00019971,2]
[359021283,1745656242192,-500.0,0.00019971,2]
[359021284,1745656242203,-500.0,0.00019971,2]
[359021285,1745656242216,-500.0,0.00019971,2]
[359021286,1745656242226,-500.0,0.00019971,2]
[359021287,1745656242237,-502.72339514,0.00019971,2]
[359021288,1745656242247,-500.0,0.00019971,2]
[359021289,1745656242258,-500.0,0.00019971,2]
[359021290,1745656242268,-1033.54,0.00019971,2]
[359021291,1745656242278,-694.21,0.00019971,2]
[359021292,1745656242288,-500.0,0.00019971,2]
[359021293,1745656242298,-500.0,0.00019971,2]
[359021294,1745656242308,-531.28426064,0.00019971,2]
[359021295,1745656242317,-938.1,0.00019971,2]
[359021296,1745656242328,-529.24,0.00019971,2]
[359021297,1745656242337,-543.06579447,0.00019971,2]
[359021298,1745656242347,-164.97025853,0.00019971,2]
[359021299,1745656242357,-532.94,0.00019971,2]
[359021300,1745656242367,-1042.04,0.00019971,2]
[359021301,1745656242381,-808.84,0.00019971,2]
[359021302,1745656242391,-848.98,0.00019971,2]
[359021303,1745656242401,-843.05,0.00019971,2]
[359021304,1745656242412,-537.65051316,0.00019971,2]
[359021305,1745656242422,-770.74,0.00019971,2]
[359021306,1745656242432,-1220.07,0.00019971,2]
[359021307,1745656242442,-500.0,0.00019971,2]
[359021308,1745656242454,-1286.45,0.00019971,2]
[359021309,1745656242467,-500.0,0.00019971,2]
[359021310,1745656242477,-500.0,0.00019971,2]
[359021311,1745656242488,-500.0,0.00019971,2]
[359021312,1745656242499,-3828.9,0.00019971,2]
[359021313,1745656242509,-892.92,0.00019971,2]
[359021314,1745656242519,-500.0,0.00019971,2]
[359021315,1745656242530,-500.0,0.00019971,2]
[359021316,1745656242542,-500.0,0.00019971,2]
[359021317,1745656242552,-500.0,0.00019971,2]
[359021318,1745656242562,-754.78,0.00019971,2]
[359021319,1745656242572,-500.0,0.00019971,2]
[359021320,1745656242583,-589.07481167,0.00019971,2]
[359021321,1745656242593,-530.04,0.00019971,2]
[359021322,1745656242603,-710.24,0.00019971,2]
[359021323,1745656242613,-512.88,0.00019971,2]
[359021324,1745656242624,-500.0,0.00019971,2]
[359021325,1745656242634,-500.0,0.00019971,2]
[359021326,1745656242644,-500.0,0.00019971,2]
[359021327,1745656242659,-753.88,0.00019971,2]
[359021328,1745656242669,-500.0,0.00019971,2]
[359021329,1745656242679,-500.0,0.00019971,2]
[359021330,1745656242690,-606.72,0.00019971,2]
[359021331,1745656242700,-500.0,0.00019971,2]
[359021332,1745656242710,-711.34,0.00019971,2]
[359021333,1745656242722,-788.76,0.00019971,2]
[359021334,1745656242732,-592.86,0.00019971,2]
[359021335,1745656242743,-259.77172413,0.00019971,2]
[359021336,1745656242753,-500.0,0.00019971,2]
[359021337,1745656242764,-500.0,0.00019971,2]
[359021338,1745656242775,-721.99,0.00019971,2]
[359021339,1745656242786,-907.62,0.00019971,2]
[359021340,1745656242797,-1010.13,0.00019971,2]
[359021341,1745656242807,-548.17,0.00019971,2]
[359021342,1745656242818,-627.78306474,0.00019971,2]
[359021343,1745656242828,-1071.17,0.00019971,2]
[359021344,1745656242838,-652.9,0.00019971,2]
[359021345,1745656242848,-824.1,0.00019971,2]
[359021346,1745656242858,-882.71,0.00019971,2]
[359021347,1745656242869,-4893.56,0.00019971,2]
[359021348,1745656242879,-500.0,0.00019971,2]
[359021349,1745656242889,-500.0,0.00019971,2]
[359021350,1745656242899,-500.0,0.00019971,2]
[359021351,1745656242909,-500.0,0.00019971,2]
[359021352,1745656242919,-700.21,0.00019971,2]
[359021353,1745656242929,-500.0,0.00019971,2]
[359021354,1745656242939,-633.62,0.00019971,2]
[359021355,1745656242949,-500.0,0.00019971,2]
[359021356,1745656242960,-1109.75,0.00019971,2]
[359021357,1745656242974,-500.11677231,0.00019971,2]
[359021358,1745656242984,-908.93,0.00019971,2]
[359021359,1745656242995,-1193.69,0.00019971,2]
[359021360,1745656243006,-541.43,0.00019971,2]
[359021361,1745656243016,-500.0,0.00019971,2]
[359021362,1745656243027,-500.0,0.00019971,2]
[359021363,1745656243037,-670.5,0.00019971,2]
[359021364,1745656243048,-500.0,0.00019971,2]
[359021365,1745656243058,-636.79,0.00019971,2]
[359021366,1745656243069,-103114.40493615,0.00019971,2]
[359021367,1745656243098,-59915.0114445,0.00019971,2]
[359021368,1745656243143,-486.29226661,0.0001997,2]
[359021369,1745656243162,-13.70773339,0.0001997,2]
[359021370,1745656243172,-2171.00589056,0.00019971,2]
[359021381,1745656244754,-500.0,0.0001997,2]
[359021383,1745656244764,-8862.27119223,0.00019971,2]
[359021386,1745656244810,-290.82140058,0.00019971,2]
[359021387,1745656244822,-728.56470782,0.00019971,2]
[359021388,1745656244836,-499.12427864,0.00019971,2]
[359021389,1745656244847,-752.27465241,0.00019971,2]
[359021390,1745656245026,-417.59346632,0.000199,2]
[359021426,1745656246465,-877.0,0.00019685,2]
[359021427,1745656246485,-481.86653368,0.000199,2]
[359021428,1745656246496,-825.55,0.000199,2]
[359021429,1745656246507,-455.14,0.000199,2]
[359021430,1745656246519,-500.0,0.0001997,2]
[359021431,1745656246530,-138868.87149711,0.00019971,2]
[359021432,1745656246544,-989.32,0.00019971,2]
[359021433,1745656246554,-500.0,0.00019971,2]
[359021434,1745656246564,-509.79,0.00019971,2]
[359021435,1745656246574,-617.04,0.00019971,2]
[359021436,1745656246585,-536.10680381,0.00019971,2]
[359021437,1745656246596,-175.25610199,0.00019971,2]
[359021438,1745656246607,-842.22,0.00019971,2]
[359021439,1745656246617,-500.0,0.00019971,2]
[359021440,1745656246628,-941.02,0.00019971,2]
[359021441,1745656246638,-500.0,0.00019971,2]
[359021442,1745656246649,-500.0,0.00019971,2]
[359021443,1745656246658,-500.0,0.00019971,2]
[359021444,1745656246668,-1079.49,0.00019971,2]
[359021445,1745656246678,-1402.08,0.00019971,2]
[359021446,1745656246688,-500.0,0.00019971,2]
[359021447,1745656246699,-500.0,0.00019971,2]
[359021448,1745656246709,-504.72233073,0.00019971,2]
[359021449,1745656246722,-1068.02,0.00019971,2]
[359021450,1745656246732,-500.0,0.00019971,2]
[359021451,1745656246742,-500.0,0.00019971,2]
[359021452,1745656246752,-500.0,0.00019971,2]
[359021453,1745656246762,-1066.37,0.00019971,2]
[359021454,1745656246772,-872.61,0.00019971,2]
[359021455,1745656246783,-726.64,0.00019971,2]
[359021456,1745656246793,-500.0,0.00019971,2]
[359021457,1745656246803,-764.63,0.00019971,2]
[359021458,1745656246815,-579.82100227,0.00019971,2]
[359021459,1745656246825,-723.16,0.00019971,2]
[359021460,1745656246835,-1671.32,0.00019971,2]
[359021461,1745656246845,-500.0,0.00019971,2]
[359021462,1745656246855,-1161.48,0.00019971,2]
[359021463,1745656246866,-500.0,0.00019971,2]
[359021464,1745656246876,-257.46392111,0.00019971,2]
[359021465,1745656246886,-740.57,0.00019971,2]
[359021466,1745656246897,-997.95,0.00019971,2]
[359021467,1745656246907,-1816.09,0.00019971,2]
[359021468,1745656246923,-500.0,0.00019971,2]
[359021469,1745656246935,-989.05,0.00019971,2]
[359021470,1745656246946,-572.49157248,0.00019971,2]
[359021471,1745656246957,-500.0,0.00019971,2]
[359021473,1745656246970,-501.27389145,0.00019971,2]
[359021475,1745656246980,-500.0,0.00019971,2]
[359021476,1745656246990,-1083.6,0.00019971,2]
[359021477,1745656247001,-1198.8,0.00019971,2]
[359021478,1745656247011,-673.84,0.00019971,2]
[359021479,1745656247022,-720.98,0.00019971,2]
[359021480,1745656247032,-801.81,0.00019971,2]
[359021481,1745656247042,-1681.27,0.00019971,2]
[359021482,1745656247053,-500.0,0.00019971,2]
[359021483,1745656247064,-1158.25,0.00019971,2]
[359021484,1745656247074,-661.53,0.00019971,2]
[359021485,1745656247084,-500.0,0.00019971,2]
[359021486,1745656247093,-500.0,0.00019971,2]
[359021487,1745656247103,-500.0,0.00019971,2]
[359021488,1745656247114,-362.55651824,0.00019971,2]
[359021489,1745656247128,-137.44348176,0.00019971,2]
[359021490,1745656247138,-522.53,0.00019971,2]
[359021492,1745656247149,-12341.09,0.00019971,2]
[359021494,1745656247159,-573.45,0.00019971,2]
[359021496,1745656247170,-500.0,0.00019971,2]
[359021498,1745656247181,-891.56,0.00019971,2]
[359021500,1745656247192,-984.61,0.00019971,2]
[359021502,1745656247201,-604.4,0.00019971,2]
[359021504,1745656247211,-500.0,0.00019971,2]
[359021506,1745656247225,-525.88,0.00019971,2]
[359021509,1745656247236,-1746.98,0.00019971,2]
[359021511,1745656247246,-500.0,0.00019971,2]
[359021513,1745656247256,-604.73,0.00019971,2]
[359021515,1745656247266,-1167.22,0.00019971,2]
[359021517,1745656247276,-500.0,0.00019971,2]
[359021519,1745656247285,-698.75,0.00019971,2]
[359021521,1745656247295,-825.8,0.00019971,2]
[359021523,1745656247307,-1755.08,0.00019971,2]
[359021525,1745656247317,-1124.85,0.00019971,2]
[359021527,1745656247327,-500.0,0.00019971,2]
[359021529,1745656247338,-500.0,0.00019971,2]
[359021532,1745656247353,-500.0,0.00019971,2]
[359021534,1745656247364,-500.0,0.00019971,2]
[359021536,1745656247374,-500.0,0.00019971,2]
[359021537,1745656247384,-709.46362186,0.00019972,2]
[359021538,1745656247395,-32840.43470572,0.00019972,2]
[359021539,1745656247409,-6487.33388835,0.00019972,2]
[359021540,1745656247423,-486.14657231,0.00019972,2]
[359021541,1745656247434,-306.67261915,0.00019972,2]
[359021542,1745656247520,-926.4204468,0.00019972,2]
[359021543,1745656247533,-8531.39876815,0.00019972,2]
[359021544,1745656247580,-18409.1702039,0.00019972,2]
[359021547,1745656405992,1000.0,0.00018952,2]
[359021548,1745656589262,9879.0,0.00018936,2]
[359021549,1745656799663,23900.0,0.00018982,2]
[359021550,1745656809842,30301.0,0.00037808,60]
[359021551,1745656844892,164.04,0.00018963,2]
[359021552,1745656966562,250.0,0.00017,2]
[359021553,1745656967501,300.0,0.00019,2]
[359021554,1745656974877,374.37,0.00018932,2]
[359021556,1745656990954,2000.0,0.00018781,2]
[359021557,1745657000160,200.0,0.00018781,2]
[359021558,1745657082724,-250.0,0.00019493,2]
[359021559,1745657082755,-250.0,0.00019699,2]
[359021560,1745657082787,-2178.10482349,0.00019699,3]
[359021561,1745657082819,-200.0,0.00019713,2]
[359021562,1745657082848,-1000.0,0.00019732,2]
[359021563,1745657082878,-150.0,0.00019735,2]
[359021564,1745657082908,-150.0,0.00019772,2]
[359021565,1745657082938,-150.0,0.00019785,2]
[359021566,1745657082968,-150.0,0.00019787,2]
[359021567,1745657083000,-301.0613741,0.00019799,2]
[359021568,1745657083031,-150.0,0.00019803,2]
[359021569,1745657083061,-150.0,0.00019811,2]
[359021570,1745657083093,-150.0,0.00019849,2]
[359021571,1745657083125,-150.0,0.00019861,2]
[359021572,1745657083157,-1200.0,0.0001987,2]
[359021573,1745657083188,-901.14393437,0.0001987,2]
[359021574,1745657083219,-2500.0,0.0001987,2]
[359021575,1745657083253,-591.3988,0.00019872,2]
[359021576,1745657083284,-901.14393434,0.00019873,2]
[359021577,1745657083314,-502.0,0.00019874,2]
[359021578,1745657083345,-901.14393434,0.00019877,2]
[359021579,1745657083377,-901.14393434,0.0001988,2]
[359021580,1745657083408,-901.14393434,0.00019883,2]
[359021581,1745657083438,-360.67117053,0.00019885,2]
[359021582,1745657083469,-901.14393434,0.00019887,2]
[359021583,1745657083505,-901.14393434,0.0001989,2]
[359021584,1745657083536,-150.0,0.00019892,2]
[359021585,1745657083568,-901.14393434,0.00019893,2]
[359021586,1745657083600,-901.14393434,0.00019897,2]
[359021587,1745657083631,-150.0,0.00019898,2]
[359021588,1745657083661,-901.14393434,0.000199,2]
[359021589,1745657083691,-159.1767634,0.000199,2]
[359021590,1745657083972,-185.91871381,0.000199,2]
[359021591,1745657084005,-1167.57886462,0.000199,2]
[359021592,1745657084036,-1000.0,0.000199,2]
[359021593,1745657084066,-150.0,0.0001993,2]
[359021594,1745657084097,-1000.0,0.00019933,2]
[359021595,1745657084127,-253.68321806,0.00019957,2]
[359021596,1745657084158,-151.0,0.0001996,2]
[359021597,1745657084188,-207.4,0.0001996,2]
[359021598,1745657084218,-523.78191945,0.0001996,2]
[359021599,1745657084249,-1680.1,0.0001996,2]
[359021600,1745657084280,-500.0,0.00019969,2]
[359021601,1745657084310,-503.29036966,0.00019969,2]
[359021602,1745657084340,-536.84827382,0.00019969,2]
[359021603,1745657084371,-610.97879616,0.00019969,2]
[359021604,1745657084402,-500.0,0.00019969,2]
[359021605,1745657084431,-572.2572303,0.00019969,2]
[359021606,1745657084462,-520.11853711,0.00019969,2]
[359021607,1745657084495,-502.11182469,0.00019969,2]
[359021608,1745657084526,-500.0,0.00019969,2]
[359021609,1745657084564,-500.0,0.00019969,2]
[359021610,1745657084596,-500.0,0.00019969,2]
[359021611,1745657084628,-500.73786669,0.00019969,2]
[359021612,1745657084659,-533.74519863,0.00019969,2]
[359021613,1745657084689,-497.83772691,0.00019969,2]
[359021614,1745657084719,-500.0,0.00019969,2]
[359021615,1745657084754,-500.0,0.00019969,2]
[359021616,1745657084785,-548.87511888,0.00019969,2]
[359021617,1745657084818,-519.15572139,0.00019969,2]
[359021618,1745657084852,-551.38385553,0.00019969,2]
[359021619,1745657084883,-533.4801057,0.00019969,2]
[359021620,1745657084914,-514.82011374,0.00019969,2]
[359021621,1745657084945,-503.14367631,0.00019969,2]
[359021622,1745657084975,-520.18561286,0.00019969,2]
[359021623,1745657085010,-500.0,0.00019969,2]
[359021624,1745657085041,-538.4479743,0.00019969,2]
[359021625,1745657085073,-845.93,0.00019969,2]
[359021626,1745657085105,-546.4833016,0.00019969,2]
[359021627,1745657085134,-503.41623525,0.00019969,2]
[359021628,1745657085166,-607.21,0.00019969,2]
[359021629,1745657085196,-671.03,0.00019969,2]
[359021630,1745657085226,-562.80269802,0.00019969,2]
[359021631,1745657085258,-500.0,0.00019969,2]
[359021632,1745657085291,-500.0,0.00019969,2]
[359021633,1745657085321,-502.45402154,0.00019969,2]
[359021634,1745657085352,-500.0,0.00019969,2]
[359021635,1745657085384,-948.1,0.00019969,2]
[359021636,1745657085415,-500.0,0.00019969,2]
[359021637,1745657085659,-500.0,0.00019969,2]
[359021638,1745657085700,-901.81,0.00019969,2]
[359021639,1745657085732,-503.06286894,0.00019969,2]
[359021640,1745657085762,-511.51689646,0.00019969,2]
[359021641,1745657085792,-1034.51,0.00019969,2]
[359021642,1745657085825,-500.0,0.00019969,2]
[359021643,1745657085856,-500.0,0.00019969,2]
[359021644,1745657085886,-500.0,0.0001997,2]
[359021645,1745657085917,-500.0,0.0001997,2]
[359021646,1745657085949,-844.4,0.0001997,2]
[359021647,1745657085979,-500.0,0.0001997,2]
[359021648,1745657086011,-543.57,0.0001997,2]
[359021649,1745657086042,-500.0,0.0001997,2]
[359021650,1745657086072,-500.0,0.0001997,2]
[359021651,1745657086104,-500.0,0.0001997,2]
[359021652,1745657086137,-675.51,0.0001997,2]
[359021653,1745657086167,-500.0,0.0001997,2]
[359021654,1745657086198,-530.72,0.0001997,2]
[359021655,1745657086228,-624.90106823,0.0001997,2]
[359021656,1745657086258,-554.93122727,0.0001997,2]
[359021657,1745657086288,-500.0,0.0001997,2]
[359021658,1745657086319,-500.0,0.0001997,2]
[359021659,1745657086349,-507.09605892,0.0001997,2]
[359021660,1745657086379,-500.0,0.0001997,2]
[359021661,1745657086409,-500.0,0.0001997,2]
[359021662,1745657086440,-500.0,0.0001997,2]
[359021663,1745657086471,-500.0,0.0001997,2]
[359021664,1745657086502,-501.20787704,0.0001997,2]
[359021665,1745657086532,-500.0,0.0001997,2]
[359021666,1745657086564,-406.51603802,0.0001997,2]
[359021667,1745657086594,-507.57435668,0.0001997,2]
[359021668,1745657086625,-500.0,0.0001997,2]
[359021669,1745657086658,-500.0,0.0001997,2]
[359021670,1745657086691,-500.0,0.0001997,2]
[359021671,1745657086722,-550.47,0.0001997,2]
[359021672,1745657086752,-500.0,0.0001997,2]
[359021673,1745657086782,-500.0,0.0001997,2]
[359021674,1745657086813,-299.54,0.0001997,2]
[359021675,1745657086848,-500.0,0.0001997,2]
[359021676,1745657086878,-500.0,0.0001997,2]
[359021677,1745657086908,-500.0,0.0001997,2]
[359021678,1745657086940,-500.0,0.0001997,2]
[359021679,1745657086970,-500.0,0.0001997,2]
[359021680,1745657087000,-500.0,0.0001997,2]
[359021681,1745657087031,-528.60810213,0.0001997,2]
[359021682,1745657087062,-500.0,0.0001997,2]
[359021683,1745657087092,-783.82,0.0001997,2]
[359021684,1745657087124,-500.0,0.0001997,2]
[359021685,1745657087385,-500.0,0.0001997,2]
[359021686,1745657087417,-460.48478775,0.0001997,2]
[359021687,1745657087448,-500.0,0.0001997,2]
[359021688,1745657087479,-500.0,0.0001997,2]
[359021689,1745657087511,-500.0,0.0001997,2]
[359021690,1745657087543,-500.0,0.0001997,2]
[359021691,1745657087574,-504.06411117,0.0001997,2]
[359021692,1745657087604,-500.0,0.0001997,2]
[359021693,1745657087635,-500.0,0.0001997,2]
[359021694,1745657087665,-500.0,0.0001997,2]
[359021695,1745657087696,-576.71105278,0.0001997,2]
[359021696,1745657087728,-500.0,0.0001997,2]
[359021697,1745657087758,-500.0,0.0001997,2]
[359021698,1745657087789,-500.0,0.0001997,2]
[359021699,1745657087822,-500.0,0.0001997,2]
[359021700,1745657087852,-500.0,0.0001997,2]
[359021701,1745657087884,-500.0,0.0001997,2]
[359021702,1745657087915,-579.80898599,0.0001997,2]
[359021703,1745657087946,-500.0,0.0001997,2]
[359021704,1745657087978,-500.0,0.0001997,2]
[359021705,1745657088010,-500.0,0.0001997,2]
[359021706,1745657088042,-500.0,0.0001997,2]
[359021707,1745657088077,-867.02,0.0001997,2]
[359021708,1745657088108,-1459.04,0.0001997,2]
[359021709,1745657088139,-240.83804305,0.0001997,2]
[359021710,1745657088170,-500.0,0.0001997,2]
[359021711,1745657088203,-590.98050264,0.0001997,2]
[359021712,1745657088234,-500.0,0.0001997,2]
[359021713,1745657088266,-500.0,0.0001997,2]
[359021714,1745657088296,-500.0,0.0001997,2]
[359021715,1745657088328,-708.56,0.0001997,2]
[359021716,1745657088358,-602.94,0.0001997,2]
[359021717,1745657088388,-500.0,0.0001997,2]
[359021718,1745657088418,-500.0,0.0001997,2]
[359021719,1745657088447,-500.0,0.0001997,2]
[359021720,1745657088477,-500.0,0.0001997,2]
[359021721,1745657088507,-500.0,0.0001997,2]
[359021722,1745657088536,-500.0,0.0001997,2]
[359021723,1745657088566,-500.0,0.0001997,2]
[359021724,1745657088596,-500.0,0.0001997,2]
[359021725,1745657088627,-507.08,0.0001997,2]
[359021726,1745657088657,-500.0,0.0001997,2]
[359021727,1745657088688,-500.0,0.0001997,2]
[359021728,1745657088718,-500.0,0.0001997,2]
[359021729,1745657088748,-500.0,0.0001997,2]
[359021730,1745657088779,-500.0,0.0001997,2]
[359021731,1745657088810,-500.0,0.0001997,2]
[359021732,1745657089032,-500.0,0.0001997,2]
[359021733,1745657089065,-519.33463836,0.0001997,2]
[359021734,1745657089098,-500.0,0.0001997,2]
[359021735,1745657089131,-500.0,0.0001997,2]
[359021736,1745657089164,-500.0,0.0001997,2]
[359021737,1745657089197,-500.0,0.0001997,2]
[359021738,1745657089230,-500.0,0.0001997,2]
[359021739,1745657089263,-500.0,0.0001997,2]
[359021740,1745657089296,-500.0,0.0001997,2]
[359021741,1745657089327,-500.0,0.0001997,2]
[359021742,1745657089361,-523.01277485,0.0001997,2]
[359021743,1745657089393,-500.0,0.0001997,2]
[359021744,1745657089426,-500.0,0.0001997,2]
[359021745,1745657089459,-500.0,0.0001997,2]
[359021746,1745657089493,-534.12,0.0001997,2]
[359021747,1745657089524,-534.12,0.0001997,2]
[359021748,1745657089555,-500.0,0.0001997,2]
[359021749,1745657089586,-500.0,0.0001997,2]
[359021750,1745657089617,-500.0,0.0001997,2]
[359021751,1745657089649,-500.0,0.0001997,2]
[359021752,1745657089680,-500.0,0.0001997,2]
[359021753,1745657089711,-500.0,0.0001997,2]
[359021754,1745657089742,-500.0,0.0001997,2]
[359021755,1745657089772,-500.0,0.0001997,2]
[359021756,1745657089802,-500.0,0.0001997,2]
[359021757,1745657089836,-500.0,0.0001997,2]
[359021758,1745657089866,-500.0,0.0001997,2]
[359021759,1745657089896,-500.0,0.0001997,2]
[359021760,1745657089927,-500.0,0.0001997,2]
[359021761,1745657089959,-500.0,0.0001997,2]
[359021762,1745657089989,-500.0,0.0001997,2]
[359021763,1745657090021,-500.0,0.0001997,2]
[359021764,1745657090051,-1196.21,0.0001997,2]
[359021765,1745657090081,-500.0,0.0001997,2]
[359021766,1745657090113,-500.0,0.0001997,2]
[359021767,1745657090144,-500.0,0.0001997,2]
[359021768,1745657090175,-500.0,0.0001997,2]
[359021769,1745657090205,-899.45,0.0001997,2]
[359021770,1745657090236,-500.0,0.0001997,2]
[359021771,1745657090268,-500.0,0.0001997,2]
[359021772,1745657090300,-261.40246475,0.0001997,2]
[359021773,1745657090331,-500.0,0.0001997,2]
[359021774,1745657090359,-532.70927816,0.0001997,2]
[359021775,1745657090389,-1064.12,0.0001997,2]
[359021776,1745657090423,-500.0,0.0001997,2]
[359021777,1745657090454,-500.0,0.0001997,2]
[359021778,1745657090484,-500.0,0.0001997,2]
[359021779,1745657090690,-373.36337326,0.0001997,2]
[359021780,1745657090722,-513.00261524,0.0001997,2]
[359021781,1745657090753,-500.0,0.0001997,2]
[359021782,1745657090784,-500.0,0.0001997,2]
[359021783,1745657090814,-500.0,0.0001997,2]
[359021784,1745657090846,-500.0,0.0001997,2]
[359021785,1745657090875,-500.0,0.0001997,2]
[359021786,1745657090908,-538.87425883,0.0001997,2]
[359021787,1745657090938,-1299.57,0.0001997,2]
[359021788,1745657090969,-506.06483487,0.0001997,2]
[359021789,1745657091001,-574.10063647,0.0001997,2]
[359021790,1745657091031,-500.0,0.0001997,2]
[359021791,1745657091061,-500.0,0.0001997,2]
[359021792,1745657091092,-500.0,0.0001997,2]
[359021793,1745657091122,-544.50635872,0.0001997,2]
[359021794,1745657091154,-500.0,0.0001997,2]
[359021795,1745657091185,-500.0,0.0001997,2]
[359021796,1745657091215,-508.17806302,0.0001997,2]
[359021797,1745657091248,-500.0,0.0001997,2]
[359021798,1745657091278,-500.0,0.0001997,2]
[359021799,1745657091310,-500.0,0.0001997,2]
[359021800,1745657091340,-505.80148705,0.0001997,2]
[359021801,1745657091372,-500.0,0.0001997,2]
[359021802,1745657091404,-811.86,0.0001997,2]
[359021803,1745657091435,-500.0,0.0001997,2]
[359021804,1745657091466,-500.0,0.0001997,2]
[359021805,1745657091496,-500.0,0.0001997,2]
[359021806,1745657091526,-522.90530043,0.0001997,2]
[359021807,1745657091556,-522.12869987,0.0001997,2]
[359021808,1745657091586,-576.81,0.0001997,2]
[359021809,1745657091617,-649.57,0.0001997,2]
[359021810,1745657091646,-505.39971917,0.0001997,2]
[359021811,1745657091676,-957.73,0.0001997,2]
[359021812,1745657091707,-500.0,0.0001997,2]
[359021813,1745657091737,-957.73,0.0001997,2]
[359021814,1745657091768,-500.0,0.0001997,2]